Cogmind - Beta 14 @@@ ROGUE MODE // 2024.08.08 @ 00:32:37 Player: Sionnis Result: Destroyed by FF-2DQ(E) with Overtuned Barrage Gun Performance ------------- Evolutions (0) 0 Regions Visited (4) 800 Robots Destroyed (26) 130 Value Destroyed (725) 725 Prototype IDs (19) 380 Alien Tech Used (0) 0 Bonus (347) 347 TOTAL SCORE: 2382 Bonus ------- Follower Combat Kills 47 Registered with UFD 300 Cogmind --------- Core Integrity 0/250 Matter 300/300 Energy 158/160 System Corruption 0% Temperature Cool (4) Movement Flying (34) Location -8/Scraptown Parts ------- > --- POWER (1) -------- Light Nuclear Core > --- PROPULSION (2) --- Cesium-ion Thruster Xenon Bombardment Thruster > --- UTILITY (2) ------ Surveybot 17 Chip > --- WEAPON (2) ------- Datajack Powered Hammer > --- INVENTORY (5) ---- Medium Storage Unit Improved Signal Interpreter Transmission Jammer Improved Utility Shielding Hacking Suite Peak State ------------ > --- POWER ------------ Subdweller Power Source Light Nuclear Core > --- PROPULSION ------- Light Treads Light Treads Spiked Treads Subdweller Monowheel > --- UTILITY ---------- Scrap Shield Tower Shield > --- WEAPON ----------- Subdweller Beam Cannon Subdweller Beam Cannon Battle Rifle Grenade Launcher > --- INVENTORY -------- Subdweller Monowheel Makeshift Flight Unit Medium Storage Unit Signal Interpreter Makeshift System Shield [Rating: 43] Favorites ----------- Power Subdweller Power Source Engine Subdweller Power Source Power Core Light Nuclear Core Propulsion Light Treads Treads Light Treads Wheel Subdweller Monowheel Flight Unit Xenon Bombardment Thruster Utility Medium Storage Unit Device V3-11A's Pendant Storage Medium Storage Unit Processor Surveybot 17 Chip Protection Scrap Shield Weapon Subdweller Beam Cannon Energy Gun Subdweller Laser Energy Cannon Subdweller Beam Cannon Ballistic Gun Subdweller Machine Gun Launcher Grenade Launcher Impact Weapon Heavy Flail Piercing Weapon Heavy Pick Special Melee Weapon Datajack Build | -11 -10 -10 -8 -8 ------- Run | Yrd Mat Sub Rec Scr Slots Evolved . | . . . . . Power . | . . . . . Propulsion . | . . . . . Utility . | . . . . . Weapon . | . . . . . Parts Attached 49 | 6 5 24 2 12 Power 6 | 1 . 4 1 . Engine 4 | 1 . 3 . . Core 2 | . . 1 1 . Reactor . | . . . . . Propulsion 11 | 2 . 5 1 3 Treads 7 | 2 . 4 1 . Leg . | . . . . . Wheel 1 | . . 1 . . Hover . | . . . . . Flight 3 | . . . . 3 Utility 15 | 1 4 6 . 4 Device 4 | . 1 2 . 1 Storage 6 | 1 2 1 . 2 Processor 2 | . 1 . . 1 Hackware . | . . . . . Protection 3 | . . 3 . . Artifact . | . . . . . Weapon 17 | 2 1 9 . 5 Energy Gun 2 | 1 . 1 . . Energy Cannon 4 | . . 4 . . Ballistic Gun 5 | 1 1 3 . . Ballistic Cannon . | . . . . . Launcher 1 | . . 1 . . Special Weapon . | . . . . . Impact Weapon 3 | . . . . 3 Slashing Weapon . | . . . . . Piercing Weapon 1 | . . . . 1 Special Melee Weapon 1 | . . . . 1 Unidentified Prototypes 1 | . . 1 . . Parts Lost 5 | . . 5 . . Power 1 | . . 1 . . Propulsion 2 | . . 2 . . Utility 1 | . . 1 . . Weapon 1 | . . 1 . . Highest Loss Streak 2 | . . 2 . . To Critical Strikes . | . . . . . Average Slot Usage (%) 96 | . 97 94 100 99 Engine 8 | . 14 12 12 . Core 5 | . . 1 1 14 Treads 21 | . 28 26 28 9 Flight 5 | . . . . 18 Device 9 | . 6 9 14 8 Storage 11 | . 14 10 14 13 Processor 2 | . 5 . . 5 Protection 1 | . . 3 . . Energy Gun 2 | . 6 3 . . Energy Cannon 7 | . . 10 14 1 Ballistic Gun 9 | . 21 11 14 1 Impact Weapon 1 | . . . . 5 Piercing Weapon 2 | . . . . 7 Special Melee Weapon 3 | . . . . 12 Peak Build Rating 43 | 6 8 43 18 29 Average Rating 19 | 4 7 20 16 23 On Entrance 9 | . 6 8 15 18 Naked Turns . | . . . . . Heaviest Build 87 | 14 29 87 28 49 Greatest Support 60 | 40 40 60 42 42 Greatest Overweight (x) 5 | 1 . 5 . 4 Average Overweight (x) . | . . . . . Largest Inventory Capacity 20 | 8 15 15 10 20 Average Capacity 10 | 7 10 10 10 11 Most Carried 15 | 3 13 15 10 13 Average Carried 9 | 1 7 9 9 9 Final Capacity 15 | 8 15 10 10 5 Final Carried 13 | 3 13 10 10 5 Class Distribution -------------------- 86% | Mutant 12% | Subdweller-Tank Dominant Class ---------------- Mutant | -10/Materials Mutant | -10/Subcaves Mutant | -8/Recycling Mutant | -8/Scraptown Resources | -11 -10 -10 -8 -8 ----------- Run | Yrd Mat Sub Rec Scr Matter Collected 1056 | 187 243 478 28 120 Remotely . | . . . . . Salvage Created 863 | . 375 397 91 . Parts 63 | . 27 31 5 . Haulers Intercepted 1 | . 1 . . . Recyclers Shooed 1 | . 1 . . . Parts Field Recycled . | . . . . . Retrieved Matter . | . . . . . Parts Self-Destructed 17 | . . 17 . . Prevented . | . . . . . Kills | -11 -10 -10 -8 -8 ------- Run | Yrd Mat Sub Rec Scr Combat Hostiles Destroyed 24 | . 6 16 2 . Guns 14 | . 6 8 . . Cannons 3 | . . 2 1 . AOE 6 | . . 6 . . Classes Destroyed 7 | . 3 2 2 . Hauler 1 | . 1 . . . Recycler 1 | . 1 . . . Swarmer 8 | . . 8 . . Grunt 6 | . 6 . . . Sentry 1 | . . . 1 . Hunter 1 | . . . 1 . Subdweller 8 | . . 8 . . Best Kill Streak 3 | . 2 3 1 . Combat Bots Only 3 | . 2 3 1 . Max Kills in Single Turn 2 | . 1 2 1 . Gunslinging . | . . . . . Exploded 2 | . . 2 . . Melee . | . . . . . Uniques/NPCs Destroyed . | . . . . . Combat | -11 -10 -10 -8 -8 -------- Run | Yrd Mat Sub Rec Scr Hostile Shots Fired 102 | . 24 67 8 3 Missed 28 | . 7 17 2 2 Damage Taken 1409 | . 191 1101 98 19 Core 255 | . 71 144 21 19 Absorbed by Shields . | . . . . . Core Remaining (%) 100 | 100 . . . . Volleys Fired 88 | . 26 58 4 . Largest 3 | . 2 3 2 . Hottest 185 | . 60 185 110 . Shots Fired 168 | . 52 108 8 . Gun 131 | . 52 75 4 . Cannon 30 | . . 26 4 . Launcher 7 | . . 7 . . Special . | . . . . . Kinetic 107 | . 40 63 4 . Thermal 42 | . . 38 4 . Explosive 7 | . . 7 . . Electromagnetic 12 | . 12 . . . Robot Hit Streak 28 | . 16 28 6 . Robot Miss Streak 8 | . 8 4 . . Penetration Max . | . . . . . Secondary Targets 1 | . . 1 . . Max Gunslinging Chain 1 | . . 1 . . Shots Hit Robots 114 | . 36 69 6 3 Core Hits 43 | . 16 26 1 . Critical Kills 1 | . . . 1 . Critical Parts Destroyed . | . . . . . Critical Strikes 2 | . . 1 1 . Meltdown 1 | . . . 1 . Destroy 1 | . . 1 . . Melee Attacks 4 | . . . . 4 Impact 1 | . . . . 1 Slashing . | . . . . . Piercing . | . . . . . Sneak Attacks 2 | . . . . 2 Combat Hostiles . | . . . . . Follow-up Attacks . | . . . . . Damage Inflicted 2068 | . 453 1470 145 . Guns 1298 | . 453 811 34 . Cannons 381 | . . 270 111 . Explosions 389 | . . 389 . . Melee . | . . . . . Ramming . | . . . . . Kinetic 1010 | . 310 666 34 . Thermal 526 | . . 415 111 . Explosive 389 | . . 389 . . Electromagnetic 143 | . 143 . . . Impact . | . . . . . Slashing . | . . . . . Piercing . | . . . . . Highest Corruption . | . . . . . Average Corruption . | . . . . . Corruption Purged . | . . . . . Corruption Blocked . | . . . . . Overload Shots . | . . . . . Overflow Damage . | . . . . . Projectiles . | . . . . . Explosions . | . . . . . Melee . | . . . . . Knockbacks . | . . . . . Impact . | . . . . . Kinetic . | . . . . . Secondary . | . . . . . Self-Inflicted Damage 64 | . . 64 . . Shots 2 | . . 2 . . Rammed . | . . . . . Targets Rammed . | . . . . . Kicked . | . . . . . Crushed . | . . . . . Highest Temperature 100 | . 4 100 99 . Average Temperature 29 | . 3 27 43 . Received Heat Transfer 393 | . 114 279 . . Siege Activations . | . . . . . Robots Corrupted . | . . . . . Combat Hostiles . | . . . . . Parts Fried . | . . . . . Impact Corruptions . | . . . . . Robots Melted 1 | . . . 1 . Combat Hostiles 1 | . . . 1 . Parts Melted . | . . . . . Heat Transferred 693 | . . 545 148 . Parts Sabotaged . | . . . . . Parts Stolen . | . . . . . Parts Stripped . | . . . . . Power Chain Reactions . | . . . . . Alert | -11 -10 -10 -8 -8 ------- Run | Yrd Mat Sub Rec Scr Peak Influence 124 | . 124 . 95 . Initial 72 | . . . 72 . Average 54 | . 56 . 58 . Maximum Alert Level . | . . . . . Low Security (%) 100 | 100 100 . 100 . Level 1 . | . . . . . Level 2 . | . . . . . Level 3 . | . . . . . Level 4 . | . . . . . Level 5 . | . . . . . High Security . | . . . . . Max Security . | . . . . . Squads Dispatched 2 | . 2 . . . Investigation 2 | . 2 . . . Extermination . | . . . . . Reinforcement . | . . . . . Assault . | . . . . . Garrison . | . . . . . Intercept . | . . . . . Searches Triggered . | . . . . . Construction Impeded . | . . . . . Haulers Reinforced . | . . . . . Active Scanning Responses . | . . . . . Cargo Convoy Interrupts . | . . . . . Stealth | -11 -10 -10 -8 -8 --------- Run | Yrd Mat Sub Rec Scr Distress Signals 1 | . 1 . . . Communications Jammed . | . . . . . Distress Signals . | . . . . . Times Spotted 47 | . 14 21 4 8 Peak Tracking Total 3 | . 3 3 2 . Tactical Retreats 2 | . 1 1 . . Traps | -11 -10 -10 -8 -8 ------- Run | Yrd Mat Sub Rec Scr Traps Triggered 2 | . 1 1 . . Indirectly . | . . . . . Trap Hack Attempts . | . . . . . Triggered . | . . . . . Disarmed . | . . . . . Reprogrammed . | . . . . . Reused . | . . . . . Traps Extracted . | . . . . . Installed . | . . . . . Triggered . | . . . . . Machines | -11 -10 -10 -8 -8 ---------- Run | Yrd Mat Sub Rec Scr Machines Disabled 4 | . . 3 . 1 Max in Single Turn 1 | . . 1 . 1 Machines Repaired . | . . . . . Machines Dismantled . | . . . . . Machines Sabotaged . | . . . . . Overloaded Fab Kills . | . . . . . Hacking | -11 -10 -10 -8 -8 --------- Run | Yrd Mat Sub Rec Scr Machines Accessed 11 | . 4 2 . 5 Terminals 3 | . 3 . . . Fabricators . | . . . . . Repair Stations . | . . . . . Recycling Units 1 | . 1 . . . Scanalyzers . | . . . . . Garrison Access . | . . . . . Total Hacks 44 | . 7 5 . 32 Successful 41 | . 4 5 . 32 Failed 3 | . 3 . . . Catastrophic 1 | . 1 . . . Database Lockouts . | . . . . . Manual 6 | . 6 . . . Terminals 6 | . 6 . . . Fabricators . | . . . . . Repair Stations . | . . . . . Recycling Units 1 | . 1 . . . Scanalyzers . | . . . . . Garrison Access . | . . . . . Terminal Hacks 37 | . . 5 . 32 Record 29 | . . 4 . 25 Robot Analysis 6 | . . . . 6 Derelict Proto ID Bank 2 | . . 1 . 1 Fabricator Hacks . | . . . . . Repair Station Hacks . | . . . . . Recycling Unit Hacks 1 | . 1 . . . Retrieve Components 1 | . 1 . . . Scanalyzer . | . . . . . Garrison Access Hacks . | . . . . . Unauthorized Hacks 3 | . 3 . . . Terminals 3 | . 3 . . . Botnet 1 | . 1 . . . Skim 2 | . 2 . . . Fabricators . | . . . . . Repair Stations . | . . . . . Recycling Units . | . . . . . Scanalyzers . | . . . . . Garrison Access . | . . . . . Data Cores Recovered . | . . . . . Used . | . . . . . Hacking Detections 4 | . 4 . . . Full Trace Events . | . . . . . Feedback Events . | . . . . . Feedback Blocked . | . . . . . Robot Schematics Acquired . | . . . . . Robots Built . | . . . . . Authchips . | . . . . . Time . | . . . . . Total Robot Build Rating . | . . . . . Part Schematics Acquired 1 | . . . . 1 Parts Built . | . . . . . Authchips . | . . . . . Time . | . . . . . Total Part Build Rating . | . . . . . Parts Repaired . | . . . . . Time . | . . . . . Parts Recycled . | . . . . . Recycled Matter . | . . . . . Retrieved Matter . | . . . . . Retrieved Components 2 | . 2 . . . Parts Scanalyzed . | . . . . . Part Schematics Acquired . | . . . . . Parts Damaged . | . . . . . Bothacking | -11 -10 -10 -8 -8 ------------ Run | Yrd Mat Sub Rec Scr Used RIF Installer . | . . . . . Robots Hacked 2 | . . . . 2 Non-combat 1 | . . . . 1 Combat 1 | . . . . 1 Robot Hacks Applied 2 | . . . . 2 parse_system 2 | . . . . 2 Relay Couplers Released . | . . . . . Fabnet Peak Effective % . | . . . . . Robots Rewired . | . . . . . Allies Hacked . | . . . . . Hacks Repelled . | . . . . . Allies | -11 -10 -10 -8 -8 -------- Run | Yrd Mat Sub Rec Scr Total Allies 3 | . . 3 . . Largest Group 3 | . . 3 2 . Highest-Rated Group 57 | . . 57 38 . Highest-Rated Ally 19 | . . 19 19 . Total Orders . | . . . . . Ally Attacks 19 | . . 15 4 . Total Damage 270 | . . 212 58 . Kills 5 | . . 5 . . Allies Corrupted . | . . . . . Allies Melted . | . . . . . Intel | -11 -10 -10 -8 -8 ------- Run | Yrd Mat Sub Rec Scr Robot Analysis Total 6 | . . . . 6 Derelict Logs Recovered 4 | . . 2 . 2 Drone Launches . | . . . . . Drone Recoveries . | . . . . . Exploration | -11 -10 -10 -8 -8 ------------- Run | Yrd Mat Sub Rec Scr Turns Passed 7073 | 72 705 3630 576 2090 Spaces Moved 4259 | 41 355 2069 349 1445 Core 7 | 6 . 1 . . Treads 2898 | 35 355 1689 349 470 Legs . | . . . . . Wheels 379 | . . 379 . . Hover . | . . . . . Flight 975 | . . . . 975 Fastest Speed 34 | 50 160 150 152 34 Average Speed 154 | 148 160 163 155 141 Slowest Speed 354 | 160 160 300 160 354 Overloaded Moves . | . . . . . Propulsion Burnouts . | . . . . . Robots Hopped 1 | . . . . 1 Cave-ins Triggered . | . . . . . Exploration Rate (%) 56 | 3 51 94 68 67 Regions Visited 4 Branch Regions 3 Pre-discovered Areas 6 | . . 1 . 5 Known Exits Taken . | . . . . . Unknown Exits Taken 4 | 1 1 1 1 . Scrap Searched 16 | . . 12 . 4 Spaces Dug 6 | . . 6 . . Terrain Destroyed 33 | . . 32 1 . Melee . | . . . . . Projectile 1 | . . . 1 . AOE 32 | . . 32 . . Terrain Rammed . | . . . . . Walls Destroyed . | . . . . . Machines Disabled . | . . . . . Actions | -11 -10 -10 -8 -8 --------- Run | Yrd Mat Sub Rec Scr Total 4582 | 49 441 2221 376 1495 Wait 69 | . 39 21 9 . Move 4253 | 40 354 2068 348 1443 Hop 1 | . . . . 1 Pick Up 63 | 3 12 24 6 18 Fast Attach 25 | 6 2 11 . 6 Attach 11 | . . 8 . 3 Detach 4 | . . 3 . 1 Swap 13 | . 3 5 2 3 Drop 48 | . 5 20 7 16 Fire 88 | . 26 58 4 . Melee 4 | . . . . 4 Ram . | . . . . . Kick . | . . . . . Crush . | . . . . . Escape Stasis . | . . . . . Rewire . | . . . . . Trap . | . . . . . Miscellaneous 3 | . . 3 . . Route ------- -11/Scrapyard -10/Materials (discovered 3 exits: [*Mat] / [*Min] / *Sub) -10/Subcaves (discovered 3 exits: [*Mat x2] / [*Rec]) -8/Recycling (discovered 2 exits: [*Fac] / *Scr) -8/Scraptown (discovered 1 exit: [*Fac]) History --------- Turn | Location | Event 10 | -11/Scrapyard | Discovered new exit (range 14) 73 | -11/Scrapyard | Entered Materials 249 | -10/Materials | Discovered new exit (range 15) 306 | -10/Materials | Build established: Mutant 573 | -10/Materials | Discovered new exit (range 3) 673 | -10/Materials | Derelicts attacked the area 754 | -10/Materials | Discovered new exit (range 8) 778 | -10/Materials | Entered Subcaves 1046 | -10/Subcaves | Core integrity fell below 50% 1371 | -10/Subcaves | Learned Materials stockpile data 1409 | -10/Subcaves | Shifting Twisted Machinery released Sub. Monowheel 1424 | -10/Subcaves | Shifting Twisted Machinery released Battle Rifle 1959 | -10/Subcaves | Learned Materials emergency access door positions 2032 | -10/Subcaves | Visited 4L-MR0's lab 2049 | -10/Subcaves | Core integrity fell below 20% 2098 | -10/Subcaves | Found Tower Shield 2099 | -10/Subcaves | Attached Tower Shield, gained temporary slots: Power, Propulsion x2, Utility x2, Weapon x2 2248 | -10/Subcaves | Discovered new exit (range 10) 2317 | -10/Subcaves | Visited Clippyterm 2324 | -10/Subcaves | Learned Factory fabricator intel 2324 | -10/Subcaves | Learned Factory stockpile data 2720 | -10/Subcaves | Build established: Subdweller-Tank 2972 | -10/Subcaves | Visited triangular shrine 2981 | -10/Subcaves | Found Prototype Device 3017 | -10/Subcaves | Identified V3-11A's Pendant 3022 | -10/Subcaves | Befriended Subdweller 3091 | -10/Subcaves | Shifting Twisted Machinery released Scrap Shield 3106 | -10/Subcaves | Shifting Twisted Machinery released Sub. Machine Gun 3162 | -10/Subcaves | Befriended Subdweller 3311 | -10/Subcaves | Build established: Mutant 3426 | -10/Subcaves | Learned location of Zion (-6) 3426 | -10/Subcaves | Met a Zionite searching for "candidates" 3437 | -10/Subcaves | Discovered new exit (range 12) 3443 | -10/Subcaves | Shifting Twisted Machinery released Sub. Laser 3484 | -10/Subcaves | Shifting Twisted Machinery released Sub. Monowheel 3667 | -10/Subcaves | Befriended Subdweller 4386 | -10/Subcaves | Discovered new exit (range 12) 4408 | -10/Subcaves | Entered Recycling 4408 | -8/Recycling | Accompanied by 2 allies 4409 | -8/Recycling | Joined Warlord attack on 0b10 via Recycling 4622 | -8/Recycling | Discovered new exit (range 9) 4948 | -8/Recycling | Scanned before Scraplab entrance 4981 | -8/Recycling | Discovered new exit (range 2) 4984 | -8/Recycling | Entered Scraptown 5203 | -8/Scraptown | Scanned Subdweller tech in exchange for log data 5209 | -8/Scraptown | Learned Factory stockpile data 5288 | -8/Scraptown | Visited UFD Registry 5288 | -8/Scraptown | Registered with UFD as "Bladeripper" 5399 | -8/Scraptown | Delivered Scrap Shield to a Scientist 5589 | -8/Scraptown | Visited Science Testing Area 5610 | -8/Scraptown | Visited Science Guys 5680 | -8/Scraptown | Visited Junk Repository 5768 | -8/Scraptown | Visited Junk Repository 5826 | -8/Scraptown | Visited Analyses Database 5853 | -8/Scraptown | Visited Research Penetration Think Tank 5949 | -8/Scraptown | Visited Supply Room 6011 | -8/Scraptown | Visited Abandonware Association 6029 | -8/Scraptown | Learned abandonware demo "KABOOM.EXE" 6029 | -8/Scraptown | Learned abandonware demo "ERRANTS.EXE" 6161 | -8/Scraptown | Visited Cartography Club 6194 | -8/Scraptown | Found Surveybot 17 Chip 6218 | -8/Scraptown | Found Deep Structural Scanner 6224 | -8/Scraptown | Learned location of Storage (-8) 6224 | -8/Scraptown | Learned location of Recycling (-8) 6224 | -8/Scraptown | Learned location of Hub_04(d) (-5) 6224 | -8/Scraptown | Learned 8 Materials zone layouts 6224 | -8/Scraptown | Learned 16 Research zone layouts 6224 | -8/Scraptown | Learned 8 Access zone layouts 6224 | -8/Scraptown | Learned 8 Lower Caves zone layouts 6224 | -8/Scraptown | Learned 16 Upper Caves zone layouts 6224 | -8/Scraptown | Learned 20 Upper Caves zone layouts 6224 | -8/Scraptown | Learned 24 Upper Caves zone layouts 6224 | -8/Scraptown | Learned Research emergency access door positions 6224 | -8/Scraptown | Learned 24 Proximity Caves zone layouts 6224 | -8/Scraptown | Learned location of 1 exit from Research 6224 | -8/Scraptown | Learned location of 2 exits from Proximity Caves 6288 | -8/Scraptown | Discovered new exit (range 3) 6476 | -8/Scraptown | Visited TADAMA 6501 | -8/Scraptown | Visited Symbiants 6541 | -8/Scraptown | Visited Cyclists 6571 | -8/Scraptown | Entered Cyclist Reading Room 6593 | -8/Scraptown | Visited Shadow of the Wyrm 6632 | -8/Scraptown | Visited Bundlers 6736 | -8/Scraptown | Delivered V3-11A's Pendant to T0-NE2 in exchange for information 6935 | -8/Scraptown | Visited Assassins FH 6996 | -8/Scraptown | Visited IN-MT5's Study 7031 | -8/Scraptown | Attacked by Scraptown defenders 7074 | -8/Scraptown | Destroyed by FF-2DQ(E) with Overtuned Barrage Gun Last Messages --------------- Acquired Powered Hammer. Acquired 20 matter. Acquired Imp. Light Armor Plating. LOCAL NARROWCAST: Assassins FH. No refunds regardless of unexpected side effects. LOCAL NARROWCAST: IN-MT5's Study. 4U-PFL(j): It's Zorbin' time. IN-MT5: I'm so glad they agreed to lend me this space for my research and preparation. We need to treat MC to a good old peasant uprising. What better way to disrupt 0b10 operations than to enlist the help of the little guys who are already all over the place? I've got just the thing... IN-MT5's Safe breached. ANNOUNCEMENT: Intruder alert! Defend Scraptown! Extracted schematic archive: IN-MT5's Pitchfork "Insurrection". Dropped Hcp. Storage Unit. Map ----- +----------------------------------------------------+ | ?????????????????# # | | ???????????####### # ################# | | ???????????#""" "# # ##############??# | | ???????????#" ## # #!!! !#""" ""#??# | | ???????????##X # #![! #" " "#??# | | ???????????#" ## #[ ! =!! #??# | | ???????????#" X "#""" # # ! # "#??# | | ???????????############ ####### "#??# | | ??????????????????????# #"" #??# | | ??????????????????????# #" !""#??# | | ??????????????????????# #"" !%"#??# | | ???????????????######## # ! "#??# | | ?????????????###" #E #"" ""#??# | | ?????????????# c #" ! #??# | | ?????????????##" # #""! g "#??# | | ?????????????# # # #??# | | ?????????????# # # #??# | | ?????????????##" # jgg#### ############ | | #######??????# # g | | """X""#??????###" # j k | | " "#????????######## | | " "#???????????????# | | " "#?????????####### k j | | " "#????????## | | " "#????????# h | | "" """########### E @ E | | ###### ;############ ######### | | #???# !c!!= #??# | | "" """##"" """### #???#"""=!! "#??# | | " "##"" "#?# #???# " ] k"#??#" " | | "" "##"" "#?# #???# " ""#??#" " | | "" "##"" "#?# #???# " """#??#" " | | "" " "##" "#?# #???# " ""#??##""""""""""# | | """" "##" "#?# #???###" k"#???#" "# | | """"""##""""""#?# #???# " k"#???## ## | | ###############?# #???###"""""""#????# #? | | ????????#####???# #?????#########????##########? | | ????????#"""#???# #????????????????????????????? | | ????????#" "#???# #????????????????????????????? | | ????????# #???# #????????????????????????????? | | ????????# ##### #????????????????????????????? | | ????????# ##???????????????????????????? | | ????????# #???????????????????????????? | | ????????# ##???###?????????????????????? | | ????????##### ### ##????""""????????????????????? | | ????????????# #??##????"" ""????????????????????? | | ???????###### ######???"" "????????????????????? | | ???????#""""" """""#??#" ""#???????????????????? | | ???????#""" " " "#??#"" ""#???????????????????? | | ???????#" "#??#"" ""#?????"?????????????? | +----------------------------------------------------+ Best States ------------- Heat Dissipation 25 Energy Generation 24 Energy Capacity 260 Matter Stores 300 Matter Capacity 300 Sight Range 16 Terrain Scan Density 1210 Armor Coverage 2800 Evasion (%) 61 Targeting Accuracy 5 Recoil Reduction 3 Item Schematics ----------------- IN-MT5's Pitchfork "Insurrection" | -8/Scraptown | Archive Robot Schematics ------------------ None Fabricated ------------ Nothing Alien Tech Used ----------------- None Achievements -------------- None Challenges ------------ None Game ------ Seed FlightPhysicsRigger Manual? 0 Play Time 00:34:41 Cumulative 552.1 hours Start 2024.08.07 @ 23:57:00 End 2024.08.08 @ 00:32:37 Sessions 1 Manual Loads 0 Difficulty Rogue Special Mode None Game No. 292 Rogue 292 Adventurer 0 Explorer 0 Win Type - Total 36 Types 22/2/4/3/1/1/1/1/1 Lore% 89 Gallery% 96 Achievement% 98 Wizard Run 0 Options --------- Layout 1 ASCII 0 Keyboard 0 Movement Numpad Keybinds 0 Fullscreen 1 Font 24/Smallcaps Map View 50x35 Zoom Use 0% Tactical HUD 1 Map Filters NONE Filters NONE Steam 1 RUN: b8be1313-141f-485b-b2bc-bd00588f839a